fUSD/lending_fUSD_20260207
["ID","MTS","AMOUNT","RATE_DAILY","PERIOD"]
[404707369,1770486643782,-492.8363728,0.00040091,2]
[404707370,1770486643792,-438.91061764,0.00040159,2]
[404707371,1770486643801,-150.0,0.00040165,2]
[404707372,1770486643811,-841.3978438,0.000406,2]
[404707373,1770486643821,-8711.8268555,0.000406,2]
[404707374,1770486643830,-153.0,0.000407,120]
[404707375,1770486643839,-507.0,0.00040897,22]
[404707376,1770486643849,-152.0,0.000409,120]
[404707377,1770486643858,-1575.155253,0.00040909,2]
[404707378,1770486643867,-605.42548284,0.00041,30]
[404707379,1770486643876,-409.0,0.00041,30]
[404707380,1770486643886,-300.0,0.00041068,22]
[404707381,1770486643895,-795.0,0.00041096,60]
[404707382,1770486643904,-795.0,0.00041096,60]
[404707383,1770486643915,-795.0,0.00041096,60]
[404707384,1770486643926,-795.0,0.00041096,60]
[404707385,1770486643935,-795.0,0.00041096,60]
[404707386,1770486643944,-795.0,0.00041096,60]
[404707387,1770486643953,-795.0,0.00041096,60]
[404707388,1770486643962,-795.0,0.00041096,60]
[404707389,1770486643971,-795.0,0.00041096,60]
[404707390,1770486643980,-795.0,0.00041096,60]
[404707391,1770486643989,-795.0,0.00041096,60]
[404707392,1770486643998,-795.0,0.00041096,60]
[404707393,1770486644007,-795.0,0.00041096,60]
[404707394,1770486644017,-795.0,0.00041096,60]
[404707395,1770486644028,-152.0,0.00041164,4]
[404707396,1770486644036,-237.39765241,0.00041373,120]
[404707397,1770486644046,-153.0,0.000415,120]
[404707398,1770486644056,-4942.26,0.000415,14]
[404707399,1770486644067,-2000.0,0.000415,7]
[404707400,1770486644077,-187.7412356,0.00041619,2]
[404707401,1770486644087,-1943.8713214,0.00041619,2]
[404707402,1770486644097,-438.91061764,0.00041757,2]
[404707403,1770486644108,-152.0,0.000419,120]
[404707404,1770486644118,-351.4646438,0.00041997,2]
[404707405,1770486644128,-500.0,0.00042,2]
[404707406,1770486644137,-150.0,0.00042173,120]
[404707407,1770486644148,-153.0,0.000422,120]
[404707408,1770486644158,-161.55018496,0.00042211,2]
[404707409,1770486644168,-800.0,0.00042212,13]
[404707410,1770486644177,-800.0,0.00042212,13]
[404707411,1770486644187,-800.0,0.00042212,13]
[404707412,1770486644196,-800.0,0.00042212,13]
[404707413,1770486644205,-800.0,0.00042212,13]
[404707414,1770486644216,-800.0,0.00042212,13]
[404707415,1770486644227,-800.0,0.00042212,13]
[404707416,1770486644237,-800.0,0.00042212,13]
[404707417,1770486644247,-800.0,0.00042212,13]
[404707418,1770486644257,-800.0,0.00042212,13]
[404707419,1770486644267,-800.0,0.00042212,13]
[404707420,1770486644276,-800.0,0.00042212,13]
[404707421,1770486644285,-800.0,0.00042212,13]
[404707422,1770486644295,-800.0,0.00042212,13]
[404707423,1770486644304,-800.0,0.00042212,13]
[404707424,1770486644313,-800.0,0.00042212,13]
[404707425,1770486644322,-800.0,0.00042212,13]
[404707426,1770486644332,-800.0,0.00042212,13]
[404707427,1770486644342,-800.0,0.00042212,13]
[404707428,1770486644350,-800.0,0.00042212,13]
[404707429,1770486644360,-800.0,0.00042212,13]
[404707430,1770486644370,-800.0,0.00042212,13]
[404707431,1770486644379,-800.0,0.00042212,13]
[404707432,1770486644388,-800.0,0.00042212,13]
[404707433,1770486644400,-800.0,0.00042212,13]
[404707434,1770486644409,-800.0,0.00042212,13]
[404707435,1770486644418,-800.0,0.00042212,13]
[404707436,1770486644431,-800.0,0.00042212,13]
[404707437,1770486644440,-800.0,0.00042212,13]
[404707438,1770486644449,-800.0,0.00042212,13]
[404707439,1770486644460,-800.0,0.00042212,13]
[404707440,1770486644469,-800.0,0.00042212,13]
[404707441,1770486644478,-800.0,0.00042212,13]
[404707442,1770486644487,-800.0,0.00042212,13]
[404707443,1770486644496,-800.0,0.00042212,13]
[404707444,1770486644507,-800.0,0.00042212,13]
[404707445,1770486644517,-800.0,0.00042212,13]
[404707446,1770486644527,-800.0,0.00042212,13]
[404707447,1770486644537,-800.0,0.00042212,13]
[404707448,1770486644546,-800.0,0.00042212,13]
[404707449,1770486644556,-800.0,0.00042212,13]
[404707450,1770486644566,-800.0,0.00042212,13]
[404707451,1770486644577,-800.0,0.00042212,13]
[404707452,1770486644586,-800.0,0.00042212,13]
[404707453,1770486644597,-800.0,0.00042212,13]
[404707454,1770486644608,-800.0,0.00042212,13]
[404707455,1770486644617,-800.0,0.00042212,13]
[404707456,1770486644626,-800.0,0.00042212,13]
[404707457,1770486644636,-800.0,0.00042212,13]
[404707458,1770486644645,-800.0,0.00042212,13]
[404707459,1770486644654,-800.0,0.00042212,13]
[404707460,1770486644663,-800.0,0.00042212,13]
[404707461,1770486644673,-800.0,0.00042212,13]
[404707462,1770486644683,-800.0,0.00042212,13]
[404707463,1770486644692,-800.0,0.00042212,13]
[404707464,1770486644703,-800.0,0.00042212,13]
[404707465,1770486644712,-800.0,0.00042212,13]
[404707466,1770486644721,-800.0,0.00042212,13]
[404707467,1770486644879,-800.0,0.00042212,13]
[404707468,1770486644889,-800.0,0.00042212,13]
[404707469,1770486644898,-677.0,0.00042212,13]
[404707470,1770486644907,-800.0,0.00042212,13]
[404707471,1770486644916,-800.0,0.00042212,13]
[404707472,1770486644925,-800.0,0.00042212,13]
[404707473,1770486644935,-800.0,0.00042212,13]
[404707474,1770486644944,-800.0,0.00042212,13]
[404707475,1770486644953,-800.0,0.00042212,13]
[404707476,1770486644962,-800.0,0.00042212,13]
[404707477,1770486644972,-800.0,0.00042212,13]
[404707478,1770486644981,-800.0,0.00042212,13]
[404707479,1770486644990,-800.0,0.00042212,13]
[404707480,1770486645000,-800.0,0.00042212,13]
[404707481,1770486645009,-800.0,0.00042212,13]
[404707482,1770486645018,-800.0,0.00042212,13]
[404707483,1770486645028,-800.0,0.00042212,13]
[404707484,1770486645037,-800.0,0.00042212,13]
[404707485,1770486645046,-800.0,0.00042212,13]
[404707486,1770486645055,-800.0,0.00042212,13]
[404707487,1770486645065,-800.0,0.00042212,13]
[404707488,1770486645074,-800.0,0.00042212,13]
[404707489,1770486645083,-800.0,0.00042212,13]
[404707490,1770486645092,-800.0,0.00042212,13]
[404707491,1770486645102,-800.0,0.00042212,13]
[404707492,1770486645111,-800.0,0.00042212,13]
[404707493,1770486645120,-800.0,0.00042212,13]
[404707494,1770486645129,-800.0,0.00042212,13]
[404707495,1770486645138,-800.0,0.00042212,13]
[404707496,1770486645147,-800.0,0.00042212,13]
[404707497,1770486645158,-800.0,0.00042212,13]
[404707498,1770486645169,-800.0,0.00042212,13]
[404707499,1770486645178,-800.0,0.00042212,13]
[404707500,1770486645188,-800.0,0.00042212,13]
[404707501,1770486645198,-800.0,0.00042212,13]
[404707502,1770486645207,-800.0,0.00042212,13]
[404707503,1770486645217,-800.0,0.00042212,13]
[404707504,1770486645227,-800.0,0.00042212,13]
[404707505,1770486645237,-800.0,0.00042212,13]
[404707506,1770486645247,-800.0,0.00042212,13]
[404707507,1770486645257,-800.0,0.00042212,13]
[404707508,1770486645268,-800.0,0.00042212,13]
[404707509,1770486645280,-800.0,0.00042212,13]
[404707510,1770486645290,-800.0,0.00042212,13]
[404707511,1770486645299,-800.0,0.00042212,13]
[404707512,1770486645309,-251.0,0.00042212,13]
[404707513,1770486645320,-198.44259772,0.00042243,73]
[404707514,1770486645331,-507.0,0.00042462,24]
[404707515,1770486645342,-20000.0,0.00042466,120]
[404707516,1770486645354,-150.0,0.00042538,7]
[404707517,1770486645363,-150.0,0.00042538,7]
[404707518,1770486645372,-150.0,0.00042538,7]
[404707519,1770486645382,-150.0,0.00042538,7]
[404707520,1770486645396,-150.0,0.00042538,7]
[404707521,1770486645406,-150.0,0.00042538,8]
[404707522,1770486645416,-150.0,0.00042538,9]
[404707523,1770486645425,-150.0,0.00042538,9]
[404707524,1770486645438,-295.0,0.00042538,10]
[404707525,1770486645448,-500.0,0.00042762,2]
[404707526,1770486645458,-53368.0,0.00042763,30]
[404707527,1770486645468,-160.0,0.00042763,30]
[404707528,1770486645479,-1031.89789323,0.00042777,7]
[404707529,1770486645489,-152.0,0.000428,120]
[404707530,1770486645499,-500.0,0.00042892,30]
[404707531,1770486645509,-242.35,0.000429,14]
[404707532,1770486645519,-151.63239092,0.000429,120]
[404707533,1770486645530,-153.0,0.00043,120]
[404707534,1770486645539,-100000.0,0.00043,8]
[404707535,1770486645549,-500.0,0.00043,2]
[404707536,1770486645560,-160.0,0.00043,30]
[404707537,1770486645570,-180.31815561,0.00043,2]
[404707538,1770486645579,-172.0,0.00043,90]
[404707539,1770486645589,-165.0,0.00043,90]
[404707540,1770486645598,-172.0,0.00043014,90]
[404707541,1770486645608,-931.04,0.00043166,30]
[404707542,1770486645619,-53368.0,0.00043203,30]
[404707543,1770486645629,-160.0,0.00043203,30]
[404707544,1770486645640,-295.3341,0.0004322,7]
[404707545,1770486645650,-624.02329856,0.00043231,50]
[404707546,1770486645659,-153.0,0.00043282,10]
[404707547,1770486645669,-151.0,0.00043287,60]
[404707548,1770486645678,-151.0,0.00043287,60]
[404707549,1770486645688,-20000.0,0.00043287,120]
[404707550,1770486645697,-604.57,0.000433,30]
[404707551,1770486645706,-4942.26,0.000433,14]
[404707552,1770486645716,-438.91061764,0.00043355,2]
[404707553,1770486645725,-242.35,0.000434,14]
[404707554,1770486645735,-24855.52,0.00043479,4]
[404707555,1770486645744,-37647.64,0.00043479,4]
[404707556,1770486645754,-16452.86,0.00043479,4]
[404707557,1770486645764,-5663.79,0.00043479,4]
[404707558,1770486645773,-479.58366267,0.00043481,60]
[404707559,1770486645783,-849.22020599,0.00043481,60]
[404707560,1770486645792,-568.64997654,0.00043481,60]
[404707561,1770486645801,-177.22817493,0.00043644,2]
[404707562,1770486645811,-53368.0,0.00043644,30]
[404707563,1770486645821,-153.0,0.000437,120]
[404707564,1770486645831,-152.0,0.000437,120]
[404707565,1770486645841,-4942.26,0.000438,14]
[404707566,1770486645851,-952.55374203,0.00043835,120]
[404707567,1770486645861,-397.0,0.0004384,2]
[404707568,1770486645871,-397.0,0.00043844,2]
[404707569,1770486645880,-200.0,0.00043864,120]
[404707570,1770486645890,-397.0,0.00043871,2]
[404707571,1770486645899,-3390.9554478,0.00043883,2]
[404707572,1770486645909,-1066.47605799,0.000439,5]
[404707573,1770486645918,-397.0,0.00043908,2]
[404707574,1770486645929,-6135.278712,0.00044,120]
[404707575,1770486645939,-160.0,0.00044,30]
[404707576,1770486645949,-664.0597,0.00044,120]
[404707579,1770486645959,-3539.88,0.00044,120]
[404707580,1770486645968,-242.35,0.00044,14]
[404707581,1770486645979,-500.0,0.00044,120]
[404707582,1770486645989,-170.2742883,0.00044007,19]
[404707583,1770486646000,-191.89062243,0.00044007,120]
[404707584,1770486646011,-49475.10336326,0.00044007,2]
[404707585,1770486646020,-472.19139524,0.00044007,9]
[404707586,1770486646031,-12530.48872772,0.00044007,2]
[404707587,1770486646042,-1301.032303,0.00044007,2]
[404707588,1770486646052,-288.33,0.00044007,120]
[404707589,1770486646061,-199.47437005,0.00044013,14]
[404707590,1770486646071,-507.0,0.00044026,25]
[404707591,1770486646082,-397.0,0.00044032,2]
[404707592,1770486646091,-265.43896907,0.00044053,2]
[404707593,1770486646101,-397.0,0.00044068,2]
[404707594,1770486646110,-150.0,0.0004408,60]
[404707595,1770486646119,-150.0,0.0004408,2]
[404707596,1770486646129,-53368.0,0.00044085,30]
[404707597,1770486646139,-762.94511327,0.00044096,30]
[404707598,1770486646149,-762.94511327,0.00044096,30]
[404707599,1770486646159,-762.94511327,0.00044096,30]
[404707600,1770486646170,-762.94511327,0.00044096,30]
[404707601,1770486646182,-762.94511327,0.00044096,30]
[404707602,1770486646191,-151.0,0.00044096,120]
[404707603,1770486646200,-151.0,0.00044096,120]
[404707604,1770486646210,-151.0,0.00044096,120]
[404707605,1770486646219,-151.0,0.00044096,120]
[404707606,1770486646228,-151.0,0.00044096,120]
[404707607,1770486646238,-151.0,0.00044096,120]
[404707608,1770486646247,-171.428821,0.00044096,120]
[404707609,1770486646257,-300.0,0.00044096,5]
[404707610,1770486646267,-300.0,0.00044096,5]
[404707611,1770486646277,-300.0,0.00044096,5]
[404707612,1770486646286,-300.0,0.00044096,5]
[404707613,1770486646296,-300.0,0.00044096,5]
[404707614,1770486646306,-151.0,0.00044096,120]
[404707615,1770486646316,-151.0,0.00044096,120]
[404707616,1770486646326,-157.4624,0.00044096,120]
[404707617,1770486646338,-152.384454,0.00044096,120]
[404707618,1770486646347,-168.125608,0.00044096,120]
[404707619,1770486646356,-151.0,0.00044096,120]
[404707620,1770486646366,-151.0,0.00044096,120]
[404707621,1770486646375,-151.0,0.00044096,120]
[404707622,1770486646386,-151.0,0.00044096,120]
[404707623,1770486646399,-151.0,0.00044096,120]
[404707624,1770486646408,-151.0,0.00044096,120]
[404707625,1770486646417,-236.115984,0.00044096,120]
[404707626,1770486646427,-151.0,0.00044096,120]
[404707627,1770486646438,-151.0,0.00044096,120]
[404707628,1770486646448,-151.0,0.00044096,120]
[404707629,1770486646457,-151.0,0.00044096,120]
[404707631,1770486646469,-214.235206,0.00044096,120]
[404707632,1770486646479,-151.0,0.00044096,120]
[404707633,1770486646493,-151.0,0.00044096,120]
[404707634,1770486646502,-151.0,0.00044096,120]
[404707635,1770486646512,-162.780205,0.00044096,120]
[404707636,1770486646522,-751.97878,0.00044096,120]
[404707637,1770486646532,-751.97878,0.00044096,120]
[404707638,1770486646541,-751.97878,0.00044096,120]
[404707639,1770486646551,-751.97878,0.00044096,120]
[404707640,1770486646562,-751.97878,0.00044096,120]
[404707641,1770486646573,-751.97878,0.00044096,120]
[404707642,1770486646582,-751.97878,0.00044096,120]
[404707644,1770486646591,-751.97878,0.00044096,120]
[404707646,1770486646600,-751.97878,0.00044096,120]
[404707648,1770486646609,-751.97878,0.00044096,120]
[404707650,1770486646619,-751.97878,0.00044096,120]
[404707652,1770486646628,-751.97878,0.00044096,120]
[404707654,1770486646641,-751.97878,0.00044096,120]
[404707656,1770486646653,-751.97878,0.00044096,120]
[404707658,1770486646662,-751.97878,0.00044096,120]
[404707660,1770486646671,-751.97878,0.00044096,120]
[404707662,1770486646680,-751.97878,0.00044096,120]
[404707664,1770486646695,-751.97878,0.00044096,120]
[404707666,1770486646705,-751.97878,0.00044096,120]
[404707668,1770486646714,-751.978788,0.00044096,120]
[404707670,1770486646724,-409.472256,0.00044096,120]
[404707672,1770486646733,-151.0,0.00044096,120]
[404707674,1770486646742,-409.472256,0.00044096,120]
[404707676,1770486646751,-151.0,0.00044096,120]
[404707678,1770486646761,-409.472256,0.00044096,120]
[404707680,1770486646770,-409.472256,0.00044096,120]
[404707682,1770486646779,-151.0,0.00044096,120]
[404707684,1770486646789,-409.472256,0.00044096,120]
[404707686,1770486646799,-151.0,0.00044096,120]
[404707688,1770486646809,-151.0,0.00044096,120]
[404707690,1770486646819,-409.472256,0.00044096,120]
[404707693,1770486646829,-151.0,0.00044096,120]
[404707695,1770486646840,-409.472256,0.00044096,120]
[404707697,1770486646849,-409.472256,0.00044096,120]
[404707699,1770486646859,-151.0,0.00044096,120]
[404707701,1770486646868,-151.0,0.00044096,120]
[404707703,1770486646877,-409.472256,0.00044096,120]
[404707705,1770486646886,-151.0,0.00044096,120]
[404707707,1770486646896,-409.472256,0.00044096,120]
[404707709,1770486646905,-151.0,0.00044096,120]
[404707711,1770486646913,-409.472256,0.00044096,120]
[404707713,1770486646923,-151.0,0.00044096,120]
[404707715,1770486646932,-409.472256,0.00044096,120]
[404707717,1770486646941,-151.0,0.00044096,120]
[404707719,1770486646951,-409.472256,0.00044096,120]
[404707721,1770486646960,-409.472256,0.00044096,120]
[404707723,1770486646970,-151.0,0.00044096,120]
[404707725,1770486646979,-409.472256,0.00044096,120]
[404707727,1770486646988,-151.0,0.00044096,120]
[404707729,1770486646997,-409.472256,0.00044096,120]
[404707731,1770486647007,-151.0,0.00044096,120]
[404707733,1770486647015,-409.472256,0.00044096,120]
[404707735,1770486647024,-234.259121,0.00044096,120]
[404707737,1770486647033,-409.472256,0.00044096,120]
[404707739,1770486647042,-409.472256,0.00044096,120]
[404707741,1770486647055,-409.472263,0.00044096,120]
[404707743,1770486647064,-151.0,0.00044096,120]
[404707745,1770486647074,-151.0,0.00044096,120]
[404707747,1770486647084,-154.182507,0.00044096,120]
[404707749,1770486647093,-151.0,0.00044096,120]
[404707751,1770486647102,-261.063484,0.00044096,120]
[404707753,1770486647112,-151.0,0.00044096,120]
[404707755,1770486647121,-151.0,0.00044096,120]
[404707757,1770486647130,-151.0,0.00044096,120]
[404707759,1770486647139,-151.0,0.00044096,120]
[404707761,1770486647149,-151.0,0.00044096,120]
[404707763,1770486647158,-151.0,0.00044096,120]
[404707765,1770486647167,-151.0,0.00044096,120]
[404707767,1770486647177,-151.0,0.00044096,120]
[404707768,1770486647186,-151.0,0.00044096,120]
[404707769,1770486647196,-229.044107,0.00044096,120]
[404707770,1770486647206,-198.162753,0.00044096,120]
[404707771,1770486647216,-151.0,0.00044096,120]
[404707772,1770486647225,-151.0,0.00044096,120]
[404707773,1770486647238,-151.0,0.00044096,120]
[404707774,1770486647247,-153.086108,0.00044096,120]
[404707775,1770486647257,-151.0,0.00044096,60]
[404707776,1770486647267,-151.0,0.00044096,60]
[404707777,1770486647351,-151.0,0.00044096,60]
[404707778,1770486647361,-151.0,0.00044096,120]
[404707779,1770486647371,-151.0,0.00044096,60]
[404707780,1770486647380,-176.776451,0.00044096,120]
[404707781,1770486647390,-151.0,0.00044096,60]
[404707782,1770486647401,-151.0,0.00044096,60]
[404707783,1770486647414,-151.0,0.00044096,60]
[404707784,1770486647423,-170.066089,0.00044096,60]
[404707785,1770486647434,-200.938774,0.00044096,120]
[404707786,1770486647443,-200.938774,0.00044096,120]
[404707787,1770486647451,-151.0,0.00044096,120]
[404707788,1770486647459,-200.938774,0.00044096,120]
[404707789,1770486647470,-154.15747,0.00044096,120]
[404707790,1770486647479,-200.938774,0.00044096,120]
[404707791,1770486647488,-200.938774,0.00044096,120]
[404707792,1770486647497,-200.938774,0.00044096,120]
[404707793,1770486647507,-200.938774,0.00044096,120]
[404707794,1770486647516,-200.938774,0.00044096,120]
[404707795,1770486647525,-200.938774,0.00044096,120]
[404707796,1770486647534,-200.938774,0.00044096,120]
[404707797,1770486647543,-200.938774,0.00044096,120]
[404707798,1770486647552,-200.938774,0.00044096,120]
[404707799,1770486647562,-200.938774,0.00044096,120]
[404707800,1770486647571,-200.938774,0.00044096,120]
[404707801,1770486647582,-200.938774,0.00044096,120]
[404707802,1770486647591,-200.938774,0.00044096,120]
[404707803,1770486647601,-200.938774,0.00044096,120]
[404707804,1770486647610,-200.938774,0.00044096,120]
[404707805,1770486647621,-200.938774,0.00044096,120]
[404707806,1770486647631,-150.0,0.000441,2]
[404707807,1770486647640,-2000.0,0.000441,7]
[404707808,1770486647649,-184.388117,0.00044107,120]
[404707809,1770486647658,-151.0,0.00044107,120]
[404707810,1770486647668,-178.512147,0.00044107,120]
[404707811,1770486647677,-151.0,0.00044107,120]
[404707812,1770486647688,-151.0,0.00044107,120]
[404707813,1770486647698,-151.0,0.00044107,120]
[404707814,1770486647708,-151.0,0.00044107,120]
[404707815,1770486647717,-151.0,0.00044107,120]
[404707816,1770486647725,-151.0,0.00044107,120]
[404707817,1770486647735,-151.0,0.00044107,120]
[404707818,1770486647744,-151.0,0.00044107,120]
[404707819,1770486647753,-151.0,0.00044107,120]
[404707820,1770486647762,-151.0,0.00044107,120]
[404707821,1770486647772,-151.0,0.00044107,120]
[404707822,1770486647783,-151.0,0.00044107,120]
[404707823,1770486647792,-151.0,0.00044107,120]
[404707824,1770486647802,-151.0,0.00044107,120]
[404707825,1770486647811,-186.347763,0.00044107,120]
[404707826,1770486647821,-204.547439,0.00044107,120]
[404707827,1770486647830,-343.274458,0.00044107,120]
[404707828,1770486647839,-343.274458,0.00044107,120]
[404707829,1770486647848,-245.653065,0.00044107,120]
[404707830,1770486647857,-343.274458,0.00044107,120]
[404707831,1770486647867,-343.274458,0.00044107,120]
[404707832,1770486647876,-343.274458,0.00044107,120]
[404707833,1770486647885,-343.274458,0.00044107,120]
[404707834,1770486647895,-343.274458,0.00044107,120]
[404707835,1770486647904,-343.274458,0.00044107,120]
[404707836,1770486647913,-343.274458,0.00044107,120]
[404707837,1770486647922,-343.274458,0.00044107,120]
[404707838,1770486647931,-343.274458,0.00044107,120]
[404707839,1770486647941,-343.274458,0.00044107,120]
[404707840,1770486647950,-343.274458,0.00044107,120]
[404707841,1770486647959,-343.274458,0.00044107,120]
[404707842,1770486647968,-343.274458,0.00044107,120]
[404707843,1770486647977,-343.274458,0.00044107,120]
[404707844,1770486647986,-343.274458,0.00044107,120]
[404707845,1770486647995,-343.274458,0.00044107,120]
[404707846,1770486648005,-343.274458,0.00044107,120]
[404707847,1770486648014,-343.274467,0.00044107,120]
[404707848,1770486648023,-399.634803,0.00044107,120]
[404707849,1770486648034,-399.634803,0.00044107,120]
[404707850,1770486648043,-399.634803,0.00044107,120]
[404707851,1770486648052,-399.634803,0.00044107,120]
[404707852,1770486648059,-399.634803,0.00044107,120]
[404707853,1770486648067,-399.634803,0.00044107,120]
[404707854,1770486648075,-399.634803,0.00044107,120]
[404707855,1770486648084,-399.634803,0.00044107,120]
[404707856,1770486648093,-399.634803,0.00044107,120]
[404707857,1770486648102,-399.634803,0.00044107,120]
[404707858,1770486648111,-399.634803,0.00044107,120]
[404707859,1770486648120,-399.634803,0.00044107,120]
[404707860,1770486648128,-399.634803,0.00044107,120]
[404707861,1770486648138,-399.634803,0.00044107,120]
[404707862,1770486648147,-399.634803,0.00044107,120]
[404707863,1770486648156,-399.634803,0.00044107,120]
[404707864,1770486648166,-399.634803,0.00044107,120]
[404707865,1770486648175,-399.634803,0.00044107,120]
[404707866,1770486648186,-399.634803,0.00044107,120]
[404707867,1770486648195,-399.634799,0.00044107,120]
[404707868,1770486648205,-151.0,0.00044107,120]
[404707869,1770486648214,-151.0,0.00044107,120]
[404707870,1770486648226,-151.0,0.00044107,120]
[404707871,1770486648235,-151.0,0.00044107,120]
[404707872,1770486648244,-151.0,0.00044107,120]
[404707873,1770486648253,-151.0,0.00044107,120]
[404707874,1770486648263,-173.003854,0.00044107,120]
[404707875,1770486648272,-154.022486,0.00044107,120]
[404707876,1770486648281,-194.60001,0.00044107,120]
[404707877,1770486648290,-282.093951,0.00044107,120]
[404707878,1770486648300,-282.093951,0.00044107,120]
[404707879,1770486648310,-282.093951,0.00044107,120]
[404707880,1770486648320,-282.093951,0.00044107,120]
[404707881,1770486648329,-282.093951,0.00044107,120]
[404707882,1770486648338,-282.093951,0.00044107,120]
[404707883,1770486648347,-282.093951,0.00044107,120]
[404707884,1770486648356,-282.093951,0.00044107,120]
[404707885,1770486648365,-282.093951,0.00044107,120]
[404707886,1770486648374,-282.093951,0.00044107,120]
[404707887,1770486648383,-151.0,0.00044107,120]
[404707888,1770486648396,-282.093951,0.00044107,120]
[404707889,1770486648405,-204.374991,0.00044107,120]
[404707890,1770486648414,-282.093951,0.00044107,120]
[404707891,1770486648423,-282.093951,0.00044107,120]
[404707892,1770486648432,-282.093951,0.00044107,120]
[404707893,1770486648442,-282.093951,0.00044107,120]
[404707894,1770486648452,-151.0,0.00044107,120]
[404707895,1770486648461,-282.093951,0.00044107,120]
[404707896,1770486648471,-151.0,0.00044107,120]
[404707897,1770486648480,-282.093951,0.00044107,120]
[404707898,1770486648490,-151.0,0.00044107,120]
[404707899,1770486648499,-151.0,0.00044107,120]
[404707900,1770486648508,-282.093951,0.00044107,120]
[404707901,1770486648518,-172.026694,0.00044107,120]
[404707902,1770486648527,-151.0,0.00044107,120]
[404707903,1770486648536,-282.093951,0.00044107,120]
[404707904,1770486648546,-282.093953,0.00044107,120]
[404707905,1770486648555,-151.0,0.00044107,120]
[404707906,1770486648564,-151.0,0.00044107,120]
[404707907,1770486648573,-151.0,0.00044107,120]
[404707908,1770486648583,-151.0,0.00044107,120]
[404707909,1770486648593,-151.0,0.00044107,120]
[404707910,1770486648604,-151.0,0.00044107,120]
[404707911,1770486648614,-151.0,0.00044107,120]
[404707912,1770486648623,-151.0,0.00044107,120]
[404707913,1770486648632,-221.369774,0.00044107,120]
[404707914,1770486648643,-151.0,0.00044107,14]
[404707915,1770486648653,-151.0,0.00044107,14]
[404707916,1770486648663,-151.0,0.00044107,14]
[404707917,1770486648672,-151.0,0.00044107,14]
[404707918,1770486648683,-151.0,0.00044107,14]
[404707919,1770486648693,-151.0,0.00044107,14]
[404707920,1770486648702,-151.0,0.00044107,14]
[404707921,1770486648712,-151.0,0.00044107,14]
[404707922,1770486648721,-159.234161,0.00044107,120]
[404707923,1770486648731,-173.436972,0.00044107,120]
[404707924,1770486648740,-173.436972,0.00044107,120]
[404707925,1770486648749,-173.436972,0.00044107,120]
[404707926,1770486648759,-173.436972,0.00044107,120]
[404707927,1770486648768,-173.436972,0.00044107,120]
[404707928,1770486648777,-173.436972,0.00044107,120]
[404707929,1770486648787,-173.436972,0.00044107,120]
[404707930,1770486648796,-173.436972,0.00044107,120]
[404707931,1770486648806,-173.436972,0.00044107,120]
[404707932,1770486648815,-173.436972,0.00044107,120]
[404707933,1770486648824,-173.436972,0.00044107,120]
[404707934,1770486648834,-173.436972,0.00044107,120]